fUST/lending_fUST_20241114
["ID","MTS","AMOUNT","RATE_DAILY","PERIOD"]
[342220260,1731597038647,-500.0,0.00016437,2]
[342220261,1731597038657,-369.23674592,0.00016437,2]
[342220262,1731597038666,-500.0,0.00016437,2]
[342220263,1731597038676,-589.26903138,0.00016437,2]
[342220264,1731597038686,-500.0,0.00016437,2]
[342220266,1731597038695,-401.16640316,0.00016437,2]
[342220268,1731597038705,-500.0,0.00016437,2]
[342220270,1731597038714,-248.99257943,0.00016437,2]
[342220272,1731597038728,-251.00742057,0.00016437,2]
[342220274,1731597038738,-500.0,0.00016437,2]
[342220275,1731597038748,-474.92512536,0.00016437,2]
[342220278,1731597038759,-25.07487464,0.00016437,2]
[342220279,1731597038768,-500.0,0.00016437,2]
[342220280,1731597038778,-500.0,0.00016437,2]
[342220281,1731597038788,-500.0,0.00016437,2]
[342220282,1731597038798,-500.0,0.00016437,2]
[342220283,1731597038809,-500.0,0.00016437,2]
[342220284,1731597038818,-500.0,0.00016437,2]
[342220286,1731597038828,-500.0,0.00016437,2]
[342220288,1731597038838,-500.0,0.00016437,2]
[342220290,1731597038848,-500.0,0.00016437,2]
[342220291,1731597038857,-500.0,0.00016437,2]
[342220293,1731597038867,-500.0,0.00016437,2]
[342220295,1731597038877,-500.0,0.00016437,2]
[342220297,1731597038888,-500.0,0.00016437,2]
[342220299,1731597038898,-500.0,0.00016437,2]
[342220301,1731597038908,-500.0,0.00016437,2]
[342220303,1731597038918,-500.0,0.00016437,2]
[342220305,1731597038929,-500.0,0.00016437,2]
[342220307,1731597038940,-500.0,0.00016437,2]
[342220309,1731597038951,-500.0,0.00016437,2]
[342220311,1731597038961,-500.0,0.00016437,2]
[342220312,1731597038971,-500.0,0.00016437,2]
[342220313,1731597038986,-500.0,0.00016437,2]
[342220314,1731597038996,-500.0,0.00016437,2]
[342220315,1731597039005,-500.0,0.00016437,2]
[342220316,1731597039015,-500.0,0.00016437,2]
[342220317,1731597039025,-500.0,0.00016437,2]
[342220318,1731597039035,-500.0,0.00016437,2]
[342220319,1731597039045,-500.0,0.00016437,2]
[342220320,1731597039054,-500.0,0.00016437,2]
[342220321,1731597039064,-500.0,0.00016437,2]
[342220322,1731597039073,-500.0,0.00016437,2]
[342220323,1731597039083,-500.0,0.00016437,2]
[342220324,1731597039092,-500.0,0.00016437,2]
[342220325,1731597039102,-500.0,0.00016437,2]
[342220326,1731597039111,-500.0,0.00016437,2]
[342220327,1731597039121,-500.0,0.00016437,2]
[342220328,1731597039131,-210.8610326,0.00016437,2]
[342220329,1731597039140,-500.0,0.00016437,2]
[342220330,1731597039150,-500.0,0.00016437,2]
[342220331,1731597039159,-500.0,0.00016437,2]
[342220332,1731597039169,-201.32561892,0.00016437,2]
[342220333,1731597039178,-626.38687478,0.00016437,2]
[342220334,1731597039188,-500.0,0.00016437,2]
[342220335,1731597039197,-500.0,0.00016437,2]
[342220336,1731597039207,-258.94233903,0.00016437,2]
[342220337,1731597039217,-348.56477708,0.00016437,2]
[342220338,1731597039229,-500.0,0.00016437,2]
[342220339,1731597039238,-347.09030227,0.00016437,2]
[342220340,1731597039247,-290.94231145,0.00016437,2]
[342220341,1731597039257,-310.94045199,0.00016437,2]
[342220342,1731597039266,-511.94267204,0.00016437,2]
[342220343,1731597039276,-539.08344399,0.00016438,2]
[342220344,1731597039285,-500.0,0.00016438,2]
[342220345,1731597039295,-500.0,0.00016438,2]
[342220346,1731597039305,-304.91377578,0.00016438,2]
[342220347,1731597039314,-151.0,0.00016438,2]
[342220348,1731597039324,-151.0,0.00016438,2]
[342220349,1731597039333,-151.0,0.00016438,2]
[342220350,1731597039343,-151.0,0.00016438,2]
[342220351,1731597039353,-151.0,0.00016438,2]
[342220352,1731597039362,-151.0,0.00016438,2]
[342220353,1731597039372,-151.0,0.00016438,2]
[342220354,1731597039381,-151.0,0.00016438,2]
[342220355,1731597039391,-151.0,0.00016438,2]
[342220356,1731597039400,-151.0,0.00016438,2]
[342220357,1731597039412,-151.0,0.00016438,2]
[342220358,1731597039423,-151.0,0.00016438,2]
[342220359,1731597039432,-151.0,0.00016438,2]
[342220360,1731597039442,-151.0,0.00016438,2]
[342220361,1731597039453,-188.476307,0.00016438,2]
[342220362,1731597039463,-500.0,0.00016438,2]
[342220363,1731597039473,-151.0,0.00016438,2]
[342220364,1731597039486,-151.0,0.00016438,2]
[342220365,1731597039498,-151.0,0.00016438,2]
[342220366,1731597039507,-151.0,0.00016438,2]
[342220367,1731597039518,-151.0,0.00016438,2]
[342220368,1731597039528,-151.0,0.00016438,2]
[342220369,1731597039539,-151.0,0.00016438,2]
[342220370,1731597039550,-151.0,0.00016438,2]
[342220371,1731597039560,-151.0,0.00016438,2]
[342220372,1731597039570,-151.0,0.00016438,2]
[342220373,1731597039580,-151.0,0.00016438,2]
[342220374,1731597039590,-151.0,0.00016438,2]
[342220375,1731597039600,-151.0,0.00016438,2]
[342220376,1731597039610,-151.0,0.00016438,2]
[342220377,1731597039620,-151.0,0.00016438,2]
[342220378,1731597039630,-156.004668,0.00016438,2]
[342220379,1731597039640,-500.0,0.00016438,2]
[342220380,1731597039650,-151.0,0.00016438,2]
[342220381,1731597039660,-151.0,0.00016438,2]
[342220382,1731597039670,-151.0,0.00016438,2]
[342220383,1731597039680,-151.0,0.00016438,2]
[342220384,1731597039691,-151.0,0.00016438,2]
[342220385,1731597039701,-178.331926,0.00016438,2]
[342220386,1731597039711,-500.0,0.00016438,2]
[342220387,1731597039721,-500.0,0.00016438,2]
[342220388,1731597039735,-500.0,0.00016438,2]
[342220389,1731597039746,-500.0,0.00016438,2]
[342220390,1731597039756,-1641.844745,0.00016438,2]
[342220391,1731597039766,-500.0,0.00016438,2]
[342220392,1731597039776,-1641.844745,0.00016438,2]
[342220393,1731597039787,-1641.844745,0.00016438,2]
[342220394,1731597039798,-1641.844745,0.00016438,2]
[342220395,1731597039809,-1641.844745,0.00016438,2]
[342220396,1731597039819,-1641.844745,0.00016438,2]
[342220397,1731597039830,-1641.844745,0.00016438,2]
[342220398,1731597039840,-1641.844745,0.00016438,2]
[342220400,1731597039851,-1641.844745,0.00016438,2]
[342220401,1731597039861,-1641.844745,0.00016438,2]
[342220402,1731597039871,-1641.844745,0.00016438,2]
[342220403,1731597039882,-1641.844745,0.00016438,2]
[342220404,1731597039891,-1641.844745,0.00016438,2]
[342220405,1731597039901,-1641.844745,0.00016438,2]
[342220406,1731597039911,-500.0,0.00016438,2]
[342220407,1731597039921,-1641.844745,0.00016438,2]
[342220408,1731597039931,-1641.844745,0.00016438,2]
[342220409,1731597039941,-1641.844745,0.00016438,2]
[342220410,1731597039951,-1641.844745,0.00016438,2]
[342220411,1731597039960,-500.0,0.00016438,2]
[342220412,1731597039970,-1641.844745,0.00016438,2]
[342220413,1731597039984,-1641.844747,0.00016438,2]
[342220414,1731597039993,-500.0,0.00016438,2]
[342220415,1731597040003,-501.79964262,0.00016438,2]
[342220417,1731597040013,-500.0,0.00016438,2]
[342220419,1731597040022,-500.0,0.00016438,2]
[342220420,1731597040032,-507.53317809,0.00016438,2]
[342220421,1731597040042,-500.0,0.00016438,2]
[342220422,1731597040051,-500.0,0.00016438,2]
[342220423,1731597040061,-500.0,0.00016438,2]
[342220424,1731597040071,-500.0,0.00016438,2]
[342220425,1731597040081,-500.0,0.00016438,2]
[342220426,1731597040090,-503.29658493,0.00016438,2]
[342220427,1731597040100,-1000.0,0.00016438,2]
[342220428,1731597040109,-500.0,0.00016438,2]
[342220429,1731597040119,-500.0,0.00016438,2]
[342220430,1731597040128,-500.0,0.00016438,2]
[342220431,1731597040138,-500.0,0.00016438,2]
[342220433,1731597040147,-500.0,0.00016438,2]
[342220434,1731597040157,-500.0,0.00016438,2]
[342220435,1731597040166,-500.0,0.00016438,2]
[342220436,1731597040175,-500.0,0.00016438,2]
[342220437,1731597040185,-500.0,0.00016438,2]
[342220438,1731597040194,-500.0,0.00016438,2]
[342220439,1731597040204,-500.0,0.00016438,2]
[342220440,1731597040214,-500.0,0.00016438,2]
[342220441,1731597040225,-500.0,0.00016438,2]
[342220442,1731597040238,-500.0,0.00016438,2]
[342220443,1731597040248,-500.0,0.00016438,2]
[342220444,1731597040257,-543.56002106,0.00016438,2]
[342220446,1731597040268,-500.0,0.00016438,2]
[342220448,1731597040277,-500.0,0.00016438,2]
[342220450,1731597040287,-500.0,0.00016438,2]
[342220452,1731597040297,-500.0,0.00016438,2]
[342220454,1731597040306,-500.0,0.00016438,2]
[342220455,1731597040315,-587.10110663,0.00016438,2]
[342220457,1731597040325,-507.87401825,0.00016438,2]
[342220459,1731597040335,-506.4035607,0.00016438,2]
[342220460,1731597040345,-568.0,0.00016438,2]
[342220461,1731597040355,-500.0,0.00016438,2]
[342220462,1731597040365,-500.0,0.00016438,2]
[342220463,1731597040374,-500.0,0.00016438,2]
[342220465,1731597040384,-500.0,0.00016438,2]
[342220467,1731597040393,-599.46268431,0.00016438,2]
[342220468,1731597040403,-500.0,0.00016438,2]
[342220469,1731597040417,-500.25359227,0.00016438,2]
[342220470,1731597040426,-500.0,0.00016438,2]
[342220471,1731597040436,-500.0,0.00016438,2]
[342220472,1731597040446,-500.0,0.00016438,2]
[342220473,1731597040455,-543.52,0.00016438,2]
[342220474,1731597040465,-500.0,0.00016438,2]
[342220475,1731597040477,-459.88690043,0.00016438,2]
[342220477,1731597040501,-40.11309957,0.00016438,2]
[342220478,1731597040511,-559.87488846,0.00016438,2]
[342220480,1731597040523,-293.16511154,0.00016438,2]
[342220481,1731597040534,-352.15062456,0.00016438,2]
[342220482,1731597040699,-500.0,0.00016438,2]
[342220483,1731597040709,-500.0,0.00016438,2]
[342220484,1731597040718,-500.0,0.00016438,2]
[342220485,1731597040732,-40.73477724,0.00016438,2]
[342220486,1731597040981,-459.26522276,0.00016438,2]
[342220487,1731597040991,-25.30659134,0.00016438,2]
[342220488,1731597041008,-474.69340866,0.00016438,2]
[342220489,1731597041017,-500.0,0.00016438,2]
[342220490,1731597041028,-500.0,0.00016438,2]
[342220491,1731597041038,-426.28476532,0.00016438,2]
[342220492,1731597041050,-73.71523468,0.00016438,2]
[342220493,1731597041061,-615.67,0.00016438,2]
[342220494,1731597041071,-500.0,0.00016438,2]
[342220495,1731597041081,-507.31163607,0.00016438,2]
[342220496,1731597041091,-500.0,0.00016438,2]
[342220497,1731597041101,-500.0,0.00016438,2]
[342220498,1731597041111,-500.0,0.00016438,2]
[342220499,1731597041121,-500.0,0.00016438,2]
[342220500,1731597041133,-501.77720471,0.00016438,2]
[342220501,1731597041142,-300.78704109,0.00016438,2]
[342220502,1731597041152,-500.0,0.00016438,2]
[342220503,1731597041161,-500.0,0.00016438,2]
[342220504,1731597041171,-500.0,0.00016438,2]
[342220505,1731597041181,-500.0,0.00016438,2]
[342220506,1731597041191,-500.0,0.00016438,2]
[342220507,1731597041200,-500.0,0.00016438,2]
[342220508,1731597041211,-500.0,0.00016438,2]
[342220509,1731597041220,-500.0,0.00016438,2]
[342220510,1731597041234,-575.32,0.00016438,2]
[342220511,1731597041245,-575.32,0.00016438,2]
[342220512,1731597041254,-157.32963345,0.00016438,2]
[342220513,1731597041267,-266.95937669,0.00016438,2]
[342220514,1731597041279,-151.03098986,0.00016438,2]
[342220515,1731597041289,-575.32,0.00016438,2]
[342220516,1731597041298,-151.17856014,0.00016438,2]
[342220517,1731597041317,-424.14143986,0.00016438,2]
[342220518,1731597041326,-575.32,0.00016438,2]
[342220519,1731597041336,-575.32,0.00016438,2]
[342220520,1731597041346,-575.32,0.00016438,2]
[342220521,1731597041355,-500.0,0.00016438,2]
[342220522,1731597041365,-575.32,0.00016438,2]
[342220523,1731597041375,-575.32,0.00016438,2]
[342220524,1731597041385,-575.32,0.00016438,2]
[342220525,1731597041395,-575.32,0.00016438,2]
[342220526,1731597041404,-575.32,0.00016438,2]
[342220527,1731597041417,-500.0,0.00016438,2]
[342220528,1731597041427,-575.32,0.00016438,2]
[342220529,1731597041437,-575.32,0.00016438,2]
[342220530,1731597041447,-500.0,0.00016438,2]
[342220531,1731597041457,-500.0,0.00016438,2]
[342220532,1731597041466,-500.0,0.00016438,2]
[342220533,1731597041479,-500.0,0.00016438,2]
[342220534,1731597041491,-500.0,0.00016438,2]
[342220535,1731597041501,-500.0,0.00016438,2]
[342220536,1731597041510,-500.0,0.00016438,2]
[342220537,1731597041519,-500.0,0.00016438,2]
[342220538,1731597041529,-503.78489816,0.00016438,2]
[342220539,1731597041539,-500.0,0.00016438,2]
[342220540,1731597041549,-500.0,0.00016438,2]
[342220541,1731597041559,-500.0,0.00016438,2]
[342220542,1731597041568,-500.0,0.00016438,2]
[342220543,1731597041579,-507.51025083,0.00016438,2]
[342220544,1731597041588,-500.0,0.00016438,2]
[342220545,1731597041598,-500.0,0.00016438,2]
[342220546,1731597041608,-594.36737383,0.00016438,2]
[342220547,1731597041618,-508.9535747,0.00016438,2]
[342220548,1731597041628,-523.63354465,0.00016438,2]
[342220549,1731597041638,-500.0,0.00016438,2]
[342220550,1731597041648,-500.0,0.00016438,2]
[342220551,1731597041658,-500.0,0.00016438,2]
[342220552,1731597041668,-500.0,0.00016438,2]
[342220553,1731597041678,-151.0,0.00016438,2]
[342220554,1731597041688,-500.0,0.00016438,2]
[342220555,1731597041698,-151.0,0.00016438,2]
[342220556,1731597041708,-500.0,0.00016438,2]
[342220557,1731597041717,-151.0,0.00016438,2]
[342220558,1731597041730,-151.0,0.00016438,2]
[342220559,1731597041739,-500.0,0.00016438,2]
[342220560,1731597041749,-500.0,0.00016438,2]
[342220561,1731597041759,-500.0,0.00016438,2]
[342220562,1731597041769,-500.0,0.00016438,2]
[342220563,1731597041779,-500.0,0.00016438,2]
[342220564,1731597041788,-500.0,0.00016438,2]
[342220565,1731597041799,-500.0,0.00016438,2]
[342220566,1731597041809,-500.0,0.00016438,2]
[342220567,1731597041820,-516.91,0.00016438,2]
[342220568,1731597041830,-399.33083532,0.00016438,2]
[342220569,1731597041840,-500.0,0.00016438,2]
[342220570,1731597041850,-195.92505068,0.00016438,2]
[342220593,1731597043739,-304.07494932,0.00016438,2]
[342220594,1731597043750,-500.0,0.00016438,2]
[342220595,1731597043760,-414.92989554,0.00016438,2]
[342220596,1731597043769,-500.0,0.00016438,2]
[342220597,1731597043780,-421.89515514,0.00016438,2]
[342220598,1731597043875,-125.86886414,0.00016438,2]
[342220599,1731597043888,-500.0,0.00016438,2]
[342220600,1731597043903,-500.0,0.00016438,2]
[342220601,1731597043914,-500.0,0.00016438,2]
[342220602,1731597043924,-500.0,0.00016438,2]
[342220603,1731597043934,-504.57589056,0.00016438,2]
[342220604,1731597043945,-500.0,0.00016438,2]
[342220605,1731597043956,-500.0,0.00016438,2]
[342220606,1731597043968,-500.0,0.00016438,2]
[342220607,1731597043985,-500.0,0.00016438,2]
[342220608,1731597043996,-500.0,0.00016438,2]
[342220609,1731597044007,-500.0,0.00016438,2]
[342220610,1731597044017,-500.0,0.00016438,2]
[342220611,1731597044027,-500.0,0.00016438,2]
[342220612,1731597044036,-502.49398749,0.00016438,2]
[342220613,1731597044045,-501.67174681,0.00016438,2]
[342220614,1731597044055,-256.04083261,0.00016438,2]
[342220615,1731597044064,-500.0,0.00016438,2]
[342220616,1731597044074,-500.0,0.00016438,2]
[342220617,1731597044084,-260.123971,0.00016438,2]
[342220618,1731597044094,-506.68688787,0.00016438,2]
[342220619,1731597044103,-521.17,0.00016438,2]
[342220620,1731597044112,-500.0,0.00016438,2]
[342220621,1731597044122,-500.0,0.00016438,2]
[342220622,1731597044131,-500.0,0.00016438,2]
[342220623,1731597044140,-349.266067,0.00016438,2]
[342220624,1731597044149,-304.568889,0.00016438,2]
[342220625,1731597044159,-500.0,0.00016438,2]
[342220626,1731597044168,-304.568889,0.00016438,2]
[342220627,1731597044178,-349.266067,0.00016438,2]
[342220628,1731597044188,-304.568889,0.00016438,2]
[342220629,1731597044198,-349.266067,0.00016438,2]
[342220630,1731597044207,-304.568889,0.00016438,2]
[342220631,1731597044217,-349.266067,0.00016438,2]
[342220632,1731597044228,-500.0,0.00016438,2]
[342220633,1731597044242,-500.0,0.00016438,2]
[342220634,1731597044252,-500.0,0.00016438,2]
[342220635,1731597044262,-502.42248631,0.00016438,2]
[342220636,1731597044272,-502.71871818,0.00016438,2]
[342220637,1731597044281,-509.13467432,0.00016438,2]
[342220638,1731597044291,-500.0,0.00016438,2]
[342220639,1731597044300,-504.35186846,0.00016438,2]
[342220640,1731597044309,-500.0,0.00016438,2]
[342220641,1731597044319,-500.0,0.00016438,2]
[342220642,1731597044328,-573.08538223,0.00016438,2]
[342220643,1731597044338,-501.23396168,0.00016438,2]
[342220644,1731597044347,-714.41,0.00016438,2]
[342220645,1731597044356,-509.96542892,0.00016438,2]
[342220646,1731597044366,-555.5,0.00016438,2]
[342220647,1731597044376,-502.26965351,0.00016438,2]
[342220648,1731597044387,-335.82078876,0.00016438,2]
[342220649,1731597044397,-503.03330588,0.00016438,2]
[342220650,1731597044409,-528.9570977,0.00016438,2]
[342220651,1731597044429,-500.0,0.00016438,2]
[342220652,1731597044448,-502.82339473,0.00016438,2]
[342220653,1731597044467,-500.0,0.00016438,2]
[342220654,1731597044485,-500.0,0.00016438,2]
[342220655,1731597044496,-542.83,0.00016438,2]
[342220656,1731597044506,-500.0,0.00016438,2]
[342220657,1731597044516,-188.55530953,0.00016438,2]
[342220658,1731597044526,-497.400473,0.00016438,2]
[342220659,1731597044535,-497.400473,0.00016438,2]
[342220660,1731597044545,-500.0,0.00016438,2]
[342220661,1731597044554,-497.400473,0.00016438,2]
[342220662,1731597044563,-497.400473,0.00016438,2]
[342220663,1731597044573,-500.0,0.00016438,2]
[342220664,1731597044582,-500.0,0.00016438,2]
[342220665,1731597044591,-502.73566215,0.00016438,2]
[342220666,1731597044600,-500.0,0.00016438,2]
[342220667,1731597044610,-500.0,0.00016438,2]
[342220668,1731597044621,-510.55224639,0.00016438,2]
[342220669,1731597044630,-500.0,0.00016438,2]
[342220670,1731597044639,-501.65194262,0.00016438,2]
[342220671,1731597044649,-500.0,0.00016438,2]
[342220672,1731597044658,-501.27183703,0.00016438,2]
[342220673,1731597044667,-512.67847408,0.00016438,2]
[342220674,1731597044677,-500.0,0.00016438,2]
[342220675,1731597044686,-151.0,0.00016438,2]
[342220676,1731597044696,-500.0,0.00016438,2]
[342220677,1731597044705,-504.11013467,0.00016438,2]
[342220678,1731597044715,-151.323715,0.00016438,2]
[342220679,1731597044724,-508.75856603,0.00016438,2]
[342220680,1731597044741,-501.01118042,0.00016438,2]
[342220681,1731597044750,-500.0,0.00016438,2]
[342220682,1731597044759,-503.26375842,0.00016438,2]
[342220683,1731597044768,-505.96172205,0.00016438,2]
[342220684,1731597044778,-813.13,0.00016438,2]
[342220685,1731597044787,-504.93214845,0.00016438,2]
[342220686,1731597044796,-500.0,0.00016438,2]
[342220687,1731597044805,-500.0,0.00016438,2]
[342220688,1731597044815,-500.0,0.00016438,2]
[342220689,1731597044824,-500.0,0.00016438,2]
[342220690,1731597044834,-500.0,0.00016438,2]
[342220691,1731597044843,-500.0,0.00016438,2]
[342220692,1731597044853,-500.0,0.00016438,2]
[342220693,1731597044862,-500.0,0.00016438,2]
[342220694,1731597044871,-500.0,0.00016438,2]
[342220695,1731597044880,-257.17440574,0.00016438,2]
[342220696,1731597044889,-500.0,0.00016438,2]
[342220697,1731597044899,-500.0,0.00016438,2]
[342220698,1731597044908,-545.22,0.00016438,2]
[342220699,1731597044918,-12.69815292,0.00016438,2]
[342220700,1731597044934,-487.30184708,0.00016438,2]
[342220701,1731597044943,-500.0,0.00016438,2]
[342220702,1731597044953,-500.0,0.00016438,2]
[342220703,1731597044962,-503.36588468,0.00016438,2]
[342220704,1731597044972,-506.12640107,0.00016438,2]
[342220705,1731597044984,-514.09814735,0.00016438,2]
[342220706,1731597044994,-500.0,0.00016438,2]
[342220707,1731597045003,-500.0,0.00016438,2]
[342220708,1731597045013,-500.0,0.00016438,2]
[342220709,1731597045022,-500.0,0.00016438,2]
[342220710,1731597045031,-500.0,0.00016438,2]
[342220711,1731597045041,-574.07291266,0.00016438,2]
[342220712,1731597045050,-500.0,0.00016438,2]
[342220713,1731597045059,-500.0,0.00016438,2]
[342220714,1731597045068,-558.82,0.00016438,2]
[342220715,1731597045078,-539.74397937,0.00016438,2]
[342220716,1731597045087,-339.68655684,0.00016438,2]
[342220717,1731597045096,-500.0,0.00016438,2]
[342220718,1731597045105,-500.0,0.00016438,2]
[342220719,1731597045114,-500.0,0.00016438,2]
[342220720,1731597045124,-151.0,0.00016438,2]
[342220721,1731597045133,-151.0,0.00016438,2]
[342220722,1731597045142,-500.0,0.00016438,2]
[342220723,1731597045151,-500.0,0.00016438,2]
[342220724,1731597045160,-500.0,0.00016438,2]
[342220725,1731597045169,-500.0,0.00016438,2]
[342220726,1731597045179,-502.47499251,0.00016438,2]
[342220727,1731597045188,-500.0,0.00016438,2]
[342220728,1731597045198,-500.0,0.00016438,2]
[342220729,1731597045207,-500.0,0.00016438,2]
[342220730,1731597045216,-500.0,0.00016438,2]
[342220731,1731597045226,-501.59602121,0.00016438,2]
[342220732,1731597045239,-500.0,0.00016438,2]
[342220733,1731597045248,-558.27737238,0.00016438,2]
[342220734,1731597045257,-500.0,0.00016438,2]
[342220735,1731597045266,-500.0,0.00016438,2]
[342220736,1731597045275,-500.0,0.00016438,2]
[342220737,1731597045285,-500.0,0.00016438,2]
[342220738,1731597045294,-500.0,0.00016438,2]
[342220739,1731597045304,-500.0,0.00016438,2]
[342220740,1731597045423,-500.0,0.00016438,2]
[342220741,1731597045454,-500.0,0.00016438,2]
[342220742,1731597045464,-500.0,0.00016438,2]
[342220743,1731597045473,-500.0,0.00016438,2]
[342220744,1731597045486,-570.38,0.00016438,2]
[342220745,1731597045498,-638.45,0.00016438,2]
[342220746,1731597045508,-500.0,0.00016438,2]
[342220747,1731597045517,-591.97610552,0.00016438,2]
[342220748,1731597045527,-500.0,0.00016438,2]
[342220749,1731597045537,-548.09,0.00016438,2]
[342220750,1731597045546,-500.0,0.00016438,2]
[342220751,1731597045556,-500.0,0.00016438,2]
[342220752,1731597045565,-500.0,0.00016438,2]
[342220753,1731597045574,-500.0,0.00016438,2]
[342220754,1731597045583,-500.0,0.00016438,2]
[342220755,1731597045592,-643.66345849,0.00016438,2]
[342220756,1731597045601,-500.0,0.00016438,2]
[342220757,1731597045610,-500.0,0.00016438,2]
[342220758,1731597045619,-500.0,0.00016438,2]
[342220759,1731597045628,-500.0,0.00016438,2]
[342220760,1731597045637,-597.15,0.00016438,2]
[342220761,1731597045646,-761.287904,0.00016438,2]
[342220762,1731597045655,-200.0,0.00016438,2]
[342220763,1731597045665,-544.33240048,0.00016438,2]
[342220764,1731597045674,-761.287904,0.00016438,2]
[342220765,1731597045683,-536.34137126,0.00016438,2]
[342220767,1731597045692,-500.0,0.00016438,2]
[342220768,1731597045701,-500.0,0.00016438,2]
[342220769,1731597045711,-500.0,0.00016438,2]
[342220770,1731597045720,-761.287904,0.00016438,2]
[342220771,1731597045731,-761.287904,0.00016438,2]
[342220772,1731597045741,-151.0,0.00016438,2]
[342220773,1731597045750,-511.18047245,0.00016438,2]
[342220774,1731597045760,-525.43709826,0.00016438,2]
[342220775,1731597045769,-500.0,0.00016438,2]
[342220776,1731597045779,-505.88621674,0.00016438,2]
[342220777,1731597045788,-500.0,0.00016438,2]
[342220779,1731597045798,-500.0,0.00016438,2]
[342220781,1731597045808,-500.0,0.00016438,2]
[342220783,1731597045817,-500.0,0.00016438,2]
[342220784,1731597045827,-500.0,0.00016438,2]
[342220785,1731597045836,-500.0,0.00016438,2]
[342220786,1731597045845,-169.02725393,0.00016438,2]
[342220787,1731597045854,-500.0,0.00016438,2]
[342220788,1731597045863,-500.0,0.00016438,2]
[342220789,1731597045873,-151.0,0.00016438,2]
[342220791,1731597045882,-494.27987336,0.00016438,2]
[342220793,1731597045891,-151.0,0.00016438,2]
[342220795,1731597045900,-500.0,0.00016438,2]
[342220797,1731597045910,-635.13302333,0.00016438,2]
[342220799,1731597045920,-609.56306451,0.00016438,2]
[342220801,1731597045929,-777.17,0.00016438,2]
[342220802,1731597045938,-500.0,0.00016438,2]
[342220805,1731597045947,-503.66692239,0.00016438,2]
[342220807,1731597045957,-500.0,0.00016438,2]
[342220808,1731597045967,-500.0,0.00016438,2]
[342220811,1731597045976,-500.0,0.00016438,2]
[342220813,1731597045988,-500.0,0.00016438,2]
[342220814,1731597045998,-505.28820191,0.00016438,2]
[342220816,1731597046007,-500.0,0.00016438,2]
[342220818,1731597046017,-500.0,0.00016438,2]
[342220819,1731597046026,-500.0,0.00016438,2]
[342220820,1731597046036,-500.0,0.00016438,2]
[342220821,1731597046045,-500.0,0.00016438,2]
[342220822,1731597046054,-514.61671432,0.00016438,2]
[342220823,1731597046064,-551.35577381,0.00016438,2]
[342220825,1731597046073,-500.0,0.00016438,2]
[342220826,1731597046083,-503.18000079,0.00016438,2]
[342220828,1731597046092,-311.37748888,0.00016438,2]
[342220829,1731597046102,-252.73784996,0.00016438,2]
[342220830,1731597046111,-513.82919538,0.00016438,2]
[342220831,1731597046120,-500.0,0.00016438,2]
[342220832,1731597046129,-500.0,0.00016438,2]
[342220833,1731597046139,-518.85047428,0.00016438,2]
[342220834,1731597046148,-500.0,0.00016438,2]
[342220835,1731597046157,-501.5841235,0.00016438,2]
[342220836,1731597046166,-500.0,0.00016438,2]